Department Family,Entity,Payment Date,Expense Type,Expense Area,Supplier,Transaction Number,Amount,Invoice Description,Postal Code,"Programme, Admin, Capital"
Food Standards Agency,Food Standards Agency,01/02/2013,Programme Evidence & Research Expenditure,Delivery,Maclaren West Ltd,INV007077,"24,050.00",PO 411522 ONGOING DEVELOPMENT UKFSS FOR FSSNET VERSION 9,G68 9JS,Programme
Food Standards Agency,Food Standards Agency,01/02/2013,Telecomms-data networks & call charges,IT Service Delivery,Level 3 Communications UK Limited,80319238,"40,132.33",TELECOM TO HANDSETS & SAPS,RG24 8NA,Admin
Food Standards Agency,Food Standards Agency,01/02/2013,Telecomms-data networks & call charges,IT Service Delivery,Level 3 Communications UK Limited,80319238,"8,026.47",TELECOM TO HANDSETS & SAPS,RG24 8NA,Admin
Food Standards Agency,Food Standards Agency,05/02/2013,Subsistence UK,Area 1 Scotland - Cluster 11,Booking Services International Ltd,22764238/1,263,FSA HOTEL & ACCOMMODATION CONSOLIDATED INVOICE 13/01/13 to 28/01/13,TA1 2PF,Programme
Food Standards Agency,Food Standards Agency,05/02/2013,Subsistence UK,Area 1 Scotland - Cluster 12,Booking Services International Ltd,22764238/1,135.6,FSA HOTEL & ACCOMMODATION CONSOLIDATED INVOICE 13/01/13 to 28/01/13,TA1 2PF,Programme
Food Standards Agency,Food Standards Agency,05/02/2013,Conference and meeting facilities including accommodation,Area 1 Scotland - Cluster 12,Booking Services International Ltd,22764238/1,265,FSA HOTEL & ACCOMMODATION CONSOLIDATED INVOICE 13/01/13 to 28/01/13,TA1 2PF,Programme
Food Standards Agency,Food Standards Agency,05/02/2013,Travel UK ,Area 1 Scotland - Cluster 12,Capita Business Travel Ltd,LI507105,270.7,FSA CONSOLIDATED INVOICE TRAVEL 13/01/13-28/01/13,DE21 6BF,Programme
Food Standards Agency,Food Standards Agency,05/02/2013,Subsistence UK,Area 1 Scotland - Cluster 13,Booking Services International Ltd,22764238/1,315,FSA HOTEL & ACCOMMODATION CONSOLIDATED INVOICE 13/01/13 to 28/01/13,TA1 2PF,Programme
Food Standards Agency,Food Standards Agency,05/02/2013,Travel UK ,Area 1 Scotland - Cluster 13,Capita Business Travel Ltd,LI507105,592.73,FSA CONSOLIDATED INVOICE TRAVEL 13/01/13-28/01/13,DE21 6BF,Programme
Food Standards Agency,Food Standards Agency,05/02/2013,Conference and meeting facilities including accommodation,Area 1 Scotland - Cluster 15,Booking Services International Ltd,22764238/1,494,FSA HOTEL & ACCOMMODATION CONSOLIDATED INVOICE 13/01/13 to 28/01/13,TA1 2PF,Programme
Food Standards Agency,Food Standards Agency,05/02/2013,Travel UK ,Area 1 Scotland - Cluster 15,Capita Business Travel Ltd,LI507105,219.2,FSA CONSOLIDATED INVOICE TRAVEL 13/01/13-28/01/13,DE21 6BF,Programme
Food Standards Agency,Food Standards Agency,05/02/2013,Travel UK ,Area 2 Wales - Cluster 21,Capita Business Travel Ltd,LI507105,648.4,FSA CONSOLIDATED INVOICE TRAVEL 13/01/13-28/01/13,DE21 6BF,Programme
Food Standards Agency,Food Standards Agency,05/02/2013,Subsistence UK,Area 2 Wales - Cluster 23,Booking Services International Ltd,22764238/1,94.8,FSA HOTEL & ACCOMMODATION CONSOLIDATED INVOICE 13/01/13 to 28/01/13,TA1 2PF,Programme
Food Standards Agency,Food Standards Agency,05/02/2013,Travel UK ,Area 2 Wales - Cluster 23,Capita Business Travel Ltd,LI507105,25.9,FSA CONSOLIDATED INVOICE TRAVEL 13/01/13-28/01/13,DE21 6BF,Programme
Food Standards Agency,Food Standards Agency,05/02/2013,Car hire expenses (short term),Area 2 Wales - Cluster 23,Capita Business Travel Ltd,LI507105,420.57,FSA CONSOLIDATED INVOICE TRAVEL 13/01/13-28/01/13,DE21 6BF,Programme
Food Standards Agency,Food Standards Agency,05/02/2013,Subsistence UK,Area 3 North West England - Cluster 33,Booking Services International Ltd,22764238/1,228.1,FSA HOTEL & ACCOMMODATION CONSOLIDATED INVOICE 13/01/13 to 28/01/13,TA1 2PF,Programme
Food Standards Agency,Food Standards Agency,05/02/2013,Travel UK ,Area 3 North West England - Cluster 33,Capita Business Travel Ltd,LI507105,156.4,FSA CONSOLIDATED INVOICE TRAVEL 13/01/13-28/01/13,DE21 6BF,Programme
Food Standards Agency,Food Standards Agency,05/02/2013,Travel UK ,Area 3 North West England - Cluster 35,Capita Business Travel Ltd,LI507105,132.1,FSA CONSOLIDATED INVOICE TRAVEL 13/01/13-28/01/13,DE21 6BF,Programme
Food Standards Agency,Food Standards Agency,05/02/2013,Conference and meeting facilities including accommodation,Area 3 North West England - Cluster 36,Booking Services International Ltd,22764238/1,118,FSA HOTEL & ACCOMMODATION CONSOLIDATED INVOICE 13/01/13 to 28/01/13,TA1 2PF,Programme
Food Standards Agency,Food Standards Agency,05/02/2013,Subsistence UK,Area 3 North West England - Cluster 36,Booking Services International Ltd,22764238/1,293.6,FSA HOTEL & ACCOMMODATION CONSOLIDATED INVOICE 13/01/13 to 28/01/13,TA1 2PF,Programme
Food Standards Agency,Food Standards Agency,05/02/2013,Travel UK ,Area 3 North West England - Cluster 36,Capita Business Travel Ltd,LI507105,165.9,FSA CONSOLIDATED INVOICE TRAVEL 13/01/13-28/01/13,DE21 6BF,Programme
Food Standards Agency,Food Standards Agency,05/02/2013,Travel UK ,Area 4 North East England - Cluster 41,Capita Business Travel Ltd,LI507105,71.8,FSA CONSOLIDATED INVOICE TRAVEL 13/01/13-28/01/13,DE21 6BF,Programme
Food Standards Agency,Food Standards Agency,05/02/2013,Subsistence UK,Area 4 North East England - Cluster 44,Booking Services International Ltd,22764238/1,153,FSA HOTEL & ACCOMMODATION CONSOLIDATED INVOICE 13/01/13 to 28/01/13,TA1 2PF,Programme
Food Standards Agency,Food Standards Agency,05/02/2013,Subsistence UK,Area 4 North East England - Cluster 44,Booking Services International Ltd,22764238/1,70,FSA HOTEL & ACCOMMODATION CONSOLIDATED INVOICE 13/01/13 to 28/01/13,TA1 2PF,Programme
Food Standards Agency,Food Standards Agency,05/02/2013,Travel UK ,Area 4 North East England - Cluster 44,Capita Business Travel Ltd,LI507105,116.8,FSA CONSOLIDATED INVOICE TRAVEL 13/01/13-28/01/13,DE21 6BF,Programme
Food Standards Agency,Food Standards Agency,05/02/2013,Subsistence UK,Area 4 North East England - Cluster 47,Booking Services International Ltd,22764238/1,204,FSA HOTEL & ACCOMMODATION CONSOLIDATED INVOICE 13/01/13 to 28/01/13,TA1 2PF,Programme
Food Standards Agency,Food Standards Agency,05/02/2013,Travel UK ,Area 4 North East England - Cluster 48,Capita Business Travel Ltd,LI507105,418.7,FSA CONSOLIDATED INVOICE TRAVEL 13/01/13-28/01/13,DE21 6BF,Programme
Food Standards Agency,Food Standards Agency,05/02/2013,Subsistence UK,Area 5 South West England - Cluster 51,Booking Services International Ltd,22764238/1,70,FSA HOTEL & ACCOMMODATION CONSOLIDATED INVOICE 13/01/13 to 28/01/13,TA1 2PF,Programme
Food Standards Agency,Food Standards Agency,05/02/2013,Travel UK ,Area 5 South West England - Cluster 51,Capita Business Travel Ltd,LI507105,238.9,FSA CONSOLIDATED INVOICE TRAVEL 13/01/13-28/01/13,DE21 6BF,Programme
Food Standards Agency,Food Standards Agency,05/02/2013,Travel UK ,Area 5 South West England - Cluster 52,Capita Business Travel Ltd,LI507105,165.9,FSA CONSOLIDATED INVOICE TRAVEL 13/01/13-28/01/13,DE21 6BF,Programme
Food Standards Agency,Food Standards Agency,05/02/2013,Travel UK ,Area 5 South West England - Cluster 54,Capita Business Travel Ltd,LI507105,97.4,FSA CONSOLIDATED INVOICE TRAVEL 13/01/13-28/01/13,DE21 6BF,Programme
Food Standards Agency,Food Standards Agency,05/02/2013,Subsistence UK,Area 5 South West England - Cluster 55,Booking Services International Ltd,22764238/1,205.6,FSA HOTEL & ACCOMMODATION CONSOLIDATED INVOICE 13/01/13 to 28/01/13,TA1 2PF,Programme
Food Standards Agency,Food Standards Agency,05/02/2013,Travel UK ,Area 5 South West England - Cluster 55,Capita Business Travel Ltd,LI507105,423.2,FSA CONSOLIDATED INVOICE TRAVEL 13/01/13-28/01/13,DE21 6BF,Programme
Food Standards Agency,Food Standards Agency,05/02/2013,Travel UK ,Area 5 South West England - Cluster 56,Capita Business Travel Ltd,LI507105,35.9,FSA CONSOLIDATED INVOICE TRAVEL 13/01/13-28/01/13,DE21 6BF,Programme
Food Standards Agency,Food Standards Agency,05/02/2013,Subsistence UK,Area 5 South West England - Cluster 57,Booking Services International Ltd,22764238/1,135.6,FSA HOTEL & ACCOMMODATION CONSOLIDATED INVOICE 13/01/13 to 28/01/13,TA1 2PF,Programme
Food Standards Agency,Food Standards Agency,05/02/2013,Travel UK ,Area 5 South West England - Cluster 57,Capita Business Travel Ltd,LI507105,449,FSA CONSOLIDATED INVOICE TRAVEL 13/01/13-28/01/13,DE21 6BF,Programme
Food Standards Agency,Food Standards Agency,05/02/2013,Travel UK ,Area 6 South East England - Cluster 61,Capita Business Travel Ltd,LI507105,238.1,FSA CONSOLIDATED INVOICE TRAVEL 13/01/13-28/01/13,DE21 6BF,Programme
Food Standards Agency,Food Standards Agency,05/02/2013,Subsistence UK,Area 6 South East England - Cluster 62,Booking Services International Ltd,22764238/1,70,FSA HOTEL & ACCOMMODATION CONSOLIDATED INVOICE 13/01/13 to 28/01/13,TA1 2PF,Programme
Food Standards Agency,Food Standards Agency,05/02/2013,Travel UK ,Area 6 South East England - Cluster 62,Capita Business Travel Ltd,LI507105,289,FSA CONSOLIDATED INVOICE TRAVEL 13/01/13-28/01/13,DE21 6BF,Programme
Food Standards Agency,Food Standards Agency,05/02/2013,Subsistence UK,Area 6 South East England - Cluster 63,Booking Services International Ltd,22764238/1,274,FSA HOTEL & ACCOMMODATION CONSOLIDATED INVOICE 13/01/13 to 28/01/13,TA1 2PF,Programme
Food Standards Agency,Food Standards Agency,05/02/2013,Travel UK ,Area 6 South East England - Cluster 63,Capita Business Travel Ltd,LI507105,355,FSA CONSOLIDATED INVOICE TRAVEL 13/01/13-28/01/13,DE21 6BF,Programme
Food Standards Agency,Food Standards Agency,05/02/2013,Travel UK ,Area 6 South East England - Cluster 64,Capita Business Travel Ltd,LI507105,315.95,FSA CONSOLIDATED INVOICE TRAVEL 13/01/13-28/01/13,DE21 6BF,Programme
Food Standards Agency,Food Standards Agency,05/02/2013,Subsistence UK,Area 6 South East England - Cluster 65,Booking Services International Ltd,22764238/1,191,FSA HOTEL & ACCOMMODATION CONSOLIDATED INVOICE 13/01/13 to 28/01/13,TA1 2PF,Programme
Food Standards Agency,Food Standards Agency,05/02/2013,Travel UK ,Area 6 South East England - Cluster 65,Capita Business Travel Ltd,LI507105,32.2,FSA CONSOLIDATED INVOICE TRAVEL 13/01/13-28/01/13,DE21 6BF,Programme
Food Standards Agency,Food Standards Agency,05/02/2013,Travel UK ,Area 6 South East England - Cluster 66,Capita Business Travel Ltd,LI507105,135.2,FSA CONSOLIDATED INVOICE TRAVEL 13/01/13-28/01/13,DE21 6BF,Programme
Food Standards Agency,Food Standards Agency,05/02/2013,Subsistence UK,Chief Executive & Private Office,Booking Services International Ltd,22764238/1,196.75,FSA HOTEL & ACCOMMODATION CONSOLIDATED INVOICE 13/01/13 to 28/01/13,TA1 2PF,Admin
Food Standards Agency,Food Standards Agency,05/02/2013,Travel UK ,Chief Executive & Private Office,Capita Business Travel Ltd,LI507105,852.9,FSA CONSOLIDATED INVOICE TRAVEL 13/01/13-28/01/13,DE21 6BF,Admin
Food Standards Agency,Food Standards Agency,05/02/2013,Subsistence UK,Chair & Deputy Chair,Booking Services International Ltd,22764238/1,215.35,FSA HOTEL & ACCOMMODATION CONSOLIDATED INVOICE 13/01/13 to 28/01/13,TA1 2PF,Admin
Food Standards Agency,Food Standards Agency,05/02/2013,Travel UK ,Chair & Deputy Chair,Capita Business Travel Ltd,LI507105,124.9,FSA CONSOLIDATED INVOICE TRAVEL 13/01/13-28/01/13,DE21 6BF,Admin
Food Standards Agency,Food Standards Agency,05/02/2013,Travel UK ,FSA Board,Capita Business Travel Ltd,LI507105,751.99,FSA CONSOLIDATED INVOICE TRAVEL 13/01/13-28/01/13,DE21 6BF,Admin
Food Standards Agency,Food Standards Agency,05/02/2013,Subsistence UK,Legal Branch A,Booking Services International Ltd,22764238/1,140,FSA HOTEL & ACCOMMODATION CONSOLIDATED INVOICE 13/01/13 to 28/01/13,TA1 2PF,Admin
Food Standards Agency,Food Standards Agency,05/02/2013,Travel UK ,Legal Branch A,Capita Business Travel Ltd,LI507105,-57,FSA CONSOLIDATED INVOICE TRAVEL 13/01/13-28/01/13,DE21 6BF,Admin
Food Standards Agency,Food Standards Agency,05/02/2013,Subsistence UK,Investigations,Booking Services International Ltd,22764238/1,70,FSA HOTEL & ACCOMMODATION CONSOLIDATED INVOICE 13/01/13 to 28/01/13,TA1 2PF,Admin
Food Standards Agency,Food Standards Agency,05/02/2013,Subsistence UK,Investigations,Booking Services International Ltd,22764238/1,350,FSA HOTEL & ACCOMMODATION CONSOLIDATED INVOICE 13/01/13 to 28/01/13,TA1 2PF,Admin
Food Standards Agency,Food Standards Agency,05/02/2013,Travel UK ,Investigations,Capita Business Travel Ltd,LI507105,297.82,FSA CONSOLIDATED INVOICE TRAVEL 13/01/13-28/01/13,DE21 6BF,Admin
Food Standards Agency,Food Standards Agency,05/02/2013,Travel UK ,Chief Scientist,Capita Business Travel Ltd,LI507105,134.9,FSA CONSOLIDATED INVOICE TRAVEL 13/01/13-28/01/13,DE21 6BF,Admin
Food Standards Agency,Food Standards Agency,05/02/2013,Travel UK ,Analysis & Research Branch,Capita Business Travel Ltd,LI507105,82.5,FSA CONSOLIDATED INVOICE TRAVEL 13/01/13-28/01/13,DE21 6BF,Admin
Food Standards Agency,Food Standards Agency,05/02/2013,International Travel,Analysis & Research Branch,Capita Business Travel Ltd,LI507105,140.5,FSA CONSOLIDATED INVOICE TRAVEL 13/01/13-28/01/13,DE21 6BF,Admin
Food Standards Agency,Food Standards Agency,05/02/2013,Subsistence UK,Comms Directors Office,Booking Services International Ltd,22764238/1,435.2,FSA HOTEL & ACCOMMODATION CONSOLIDATED INVOICE 13/01/13 to 28/01/13,TA1 2PF,Admin
Food Standards Agency,Food Standards Agency,05/02/2013,Travel UK ,Comms Directors Office,Capita Business Travel Ltd,LI507105,"1,590.85",FSA CONSOLIDATED INVOICE TRAVEL 13/01/13-28/01/13,DE21 6BF,Admin
Food Standards Agency,Food Standards Agency,05/02/2013,Travel UK ,FSA Operations Director & Support,Capita Business Travel Ltd,LI507105,427.4,FSA CONSOLIDATED INVOICE TRAVEL 13/01/13-28/01/13,DE21 6BF,Programme
Food Standards Agency,Food Standards Agency,05/02/2013,Subsistence UK,Approvals & Veterinary Advice,Booking Services International Ltd,22764238/1,"1,389.40",FSA HOTEL & ACCOMMODATION CONSOLIDATED INVOICE 13/01/13 to 28/01/13,TA1 2PF,Programme
Food Standards Agency,Food Standards Agency,05/02/2013,Travel UK ,Approvals & Veterinary Advice,Capita Business Travel Ltd,LI507105,"1,860.03",FSA CONSOLIDATED INVOICE TRAVEL 13/01/13-28/01/13,DE21 6BF,Programme
Food Standards Agency,Food Standards Agency,05/02/2013,Subsistence UK,LAALD HoD & Support,Booking Services International Ltd,22764238/1,828.2,FSA HOTEL & ACCOMMODATION CONSOLIDATED INVOICE 13/01/13 to 28/01/13,TA1 2PF,Admin
Food Standards Agency,Food Standards Agency,05/02/2013,Travel UK ,LAALD HoD & Support,Capita Business Travel Ltd,LI507105,"1,782.10",FSA CONSOLIDATED INVOICE TRAVEL 13/01/13-28/01/13,DE21 6BF,Admin
Food Standards Agency,Food Standards Agency,05/02/2013,Subsistence UK,Incidents & Food Fraud,Booking Services International Ltd,22764238/1,62,FSA HOTEL & ACCOMMODATION CONSOLIDATED INVOICE 13/01/13 to 28/01/13,TA1 2PF,Admin
Food Standards Agency,Food Standards Agency,05/02/2013,Travel UK ,Incidents & Food Fraud,Capita Business Travel Ltd,LI507105,"1,053.30",FSA CONSOLIDATED INVOICE TRAVEL 13/01/13-28/01/13,DE21 6BF,Admin
Food Standards Agency,Food Standards Agency,05/02/2013,Subsistence UK,Delivery,Booking Services International Ltd,22764238/1,720.4,FSA HOTEL & ACCOMMODATION CONSOLIDATED INVOICE 13/01/13 to 28/01/13,TA1 2PF,Admin
Food Standards Agency,Food Standards Agency,05/02/2013,Conference and meeting facilities including accommodation,Delivery,Booking Services International Ltd,22764238/1,"3,450.00",FSA HOTEL & ACCOMMODATION CONSOLIDATED INVOICE 13/01/13 to 28/01/13,TA1 2PF,Admin
Food Standards Agency,Food Standards Agency,05/02/2013,Travel UK ,Delivery,Capita Business Travel Ltd,LI507105,"2,989.86",FSA CONSOLIDATED INVOICE TRAVEL 13/01/13-28/01/13,DE21 6BF,Admin
Food Standards Agency,Food Standards Agency,05/02/2013,Car hire expenses (short term),Delivery,Capita Business Travel Ltd,LI507105,231.52,FSA CONSOLIDATED INVOICE TRAVEL 13/01/13-28/01/13,DE21 6BF,Admin
Food Standards Agency,Food Standards Agency,05/02/2013,Travel UK ,Official Controls & Enforcement Strategy,Capita Business Travel Ltd,LI507105,701,FSA CONSOLIDATED INVOICE TRAVEL 13/01/13-28/01/13,DE21 6BF,Admin
Food Standards Agency,Food Standards Agency,05/02/2013,International Travel,Official Controls & Enforcement Strategy,Capita Business Travel Ltd,LI507105,529.5,FSA CONSOLIDATED INVOICE TRAVEL 13/01/13-28/01/13,DE21 6BF,Admin
Food Standards Agency,Food Standards Agency,05/02/2013,International Travel,Official Controls & Enforcement Strategy,Capita Business Travel Ltd,LI507105,403.46,FSA CONSOLIDATED INVOICE TRAVEL 13/01/13-28/01/13,DE21 6BF,Admin
Food Standards Agency,Food Standards Agency,05/02/2013,Subsistence UK,Operational Delivery,Booking Services International Ltd,22764238/1,"18,979.10",FSA HOTEL & ACCOMMODATION CONSOLIDATED INVOICE 13/01/13 to 28/01/13,TA1 2PF,Programme
Food Standards Agency,Food Standards Agency,05/02/2013,Conference and meeting facilities including accommodation,Operational Delivery,Booking Services International Ltd,22764238/1,"8,754.55",FSA HOTEL & ACCOMMODATION CONSOLIDATED INVOICE 13/01/13 to 28/01/13,TA1 2PF,Programme
Food Standards Agency,Food Standards Agency,05/02/2013,Travel UK ,Operational Delivery,Capita Business Travel Ltd,LI507105,"4,117.53",FSA CONSOLIDATED INVOICE TRAVEL 13/01/13-28/01/13,DE21 6BF,Programme
Food Standards Agency,Food Standards Agency,05/02/2013,International Travel,Operational Delivery,Capita Business Travel Ltd,LI507105,170.86,FSA CONSOLIDATED INVOICE TRAVEL 13/01/13-28/01/13,DE21 6BF,Programme
Food Standards Agency,Food Standards Agency,05/02/2013,Subsistence UK,Wine Standards,Booking Services International Ltd,22764238/1,530.6,FSA HOTEL & ACCOMMODATION CONSOLIDATED INVOICE 13/01/13 to 28/01/13,TA1 2PF,Programme
Food Standards Agency,Food Standards Agency,05/02/2013,Travel UK ,Wine Standards,Capita Business Travel Ltd,LI507105,85.75,FSA CONSOLIDATED INVOICE TRAVEL 13/01/13-28/01/13,DE21 6BF,Programme
Food Standards Agency,Food Standards Agency,05/02/2013,Subsistence UK,Central Operations Hub,Booking Services International Ltd,22764238/1,280,FSA HOTEL & ACCOMMODATION CONSOLIDATED INVOICE 13/01/13 to 28/01/13,TA1 2PF,Programme
Food Standards Agency,Food Standards Agency,05/02/2013,Travel UK ,Central Operations Hub,Capita Business Travel Ltd,LI507105,159.9,FSA CONSOLIDATED INVOICE TRAVEL 13/01/13-28/01/13,DE21 6BF,Programme
Food Standards Agency,Food Standards Agency,05/02/2013,Travel UK ,Central Operations Hub,Capita Business Travel Ltd,LI507105,"2,087.56",FSA CONSOLIDATED INVOICE TRAVEL 13/01/13-28/01/13,DE21 6BF,Programme
Food Standards Agency,Food Standards Agency,05/02/2013,Travel UK ,Contaminants HoD,Capita Business Travel Ltd,LI507105,52.9,FSA CONSOLIDATED INVOICE TRAVEL 13/01/13-28/01/13,DE21 6BF,Admin
Food Standards Agency,Food Standards Agency,05/02/2013,Travel UK ,Chemical Risk Assessment Unit,Capita Business Travel Ltd,LI507105,213.9,FSA CONSOLIDATED INVOICE TRAVEL 13/01/13-28/01/13,DE21 6BF,Admin
Food Standards Agency,Food Standards Agency,05/02/2013,Project Programme expenditure,Contaminants Policy & Strategy Unit,C E F A S,8002434,"39,795.50",PO 400947 MODELLING & ASSESSMENT FROM OCT-DEC 2012,NR33 0HT,Programme
Food Standards Agency,Food Standards Agency,05/02/2013,Travel UK ,Contaminants Policy & Strategy Unit,Capita Business Travel Ltd,LI507105,318.9,FSA CONSOLIDATED INVOICE TRAVEL 13/01/13-28/01/13,DE21 6BF,Admin
Food Standards Agency,Food Standards Agency,05/02/2013,International Travel,Contaminants Policy & Strategy Unit,Capita Business Travel Ltd,LI507105,541,FSA CONSOLIDATED INVOICE TRAVEL 13/01/13-28/01/13,DE21 6BF,Admin
Food Standards Agency,Food Standards Agency,05/02/2013,International Travel,Novel Food Unit,Capita Business Travel Ltd,LI507105,391.25,FSA CONSOLIDATED INVOICE TRAVEL 13/01/13-28/01/13,DE21 6BF,Admin
Food Standards Agency,Food Standards Agency,05/02/2013,Travel UK ,Hygiene & Microbiology Division HoD,Capita Business Travel Ltd,LI507105,304.4,FSA CONSOLIDATED INVOICE TRAVEL 13/01/13-28/01/13,DE21 6BF,Admin
Food Standards Agency,Food Standards Agency,05/02/2013,Project Programme expenditure,Microbiological Food Safety Branch,Lewis Live Ltd,14449,"30,000.00",PO 411200 PAYMENT FOR EVENT SERVICES,KT1 1NG,Programme
Food Standards Agency,Food Standards Agency,05/02/2013,Project Programme expenditure,Microbiological Food Safety Branch,Lewis Live Ltd,14449,49.08,PO 411200 PAYMENT FOR EVENT SERVICES,KT1 1NG,Programme
Food Standards Agency,Food Standards Agency,05/02/2013,Subsistence UK,Microbiological Food Safety Branch,Booking Services International Ltd,22764238/1,"4,350.00",FSA HOTEL & ACCOMMODATION CONSOLIDATED INVOICE 13/01/13 to 28/01/13,TA1 2PF,Admin
Food Standards Agency,Food Standards Agency,05/02/2013,Conference and meeting facilities including accommodation,Microbiological Food Safety Branch,Booking Services International Ltd,22764238/1,"18,704.75",FSA HOTEL & ACCOMMODATION CONSOLIDATED INVOICE 13/01/13 to 28/01/13,TA1 2PF,Admin
Food Standards Agency,Food Standards Agency,05/02/2013,Travel UK ,Food Production Branch,Capita Business Travel Ltd,LI507105,23.9,FSA CONSOLIDATED INVOICE TRAVEL 13/01/13-28/01/13,DE21 6BF,Admin
Food Standards Agency,Food Standards Agency,05/02/2013,Travel UK ,EU Regulatory Reform Branch,Capita Business Travel Ltd,LI507105,37.3,FSA CONSOLIDATED INVOICE TRAVEL 13/01/13-28/01/13,DE21 6BF,Admin
Food Standards Agency,Food Standards Agency,05/02/2013,Travel UK ,Food Hygiene Policy Branch,Capita Business Travel Ltd,LI507105,333.1,FSA CONSOLIDATED INVOICE TRAVEL 13/01/13-28/01/13,DE21 6BF,Admin
Food Standards Agency,Food Standards Agency,05/02/2013,International Travel,Food Hygiene Policy Branch,Capita Business Travel Ltd,LI507105,623,FSA CONSOLIDATED INVOICE TRAVEL 13/01/13-28/01/13,DE21 6BF,Admin
Food Standards Agency,Food Standards Agency,05/02/2013,Travel UK ,Meat & Hygiene & TSE Policy Branch,Capita Business Travel Ltd,LI507105,-20,FSA CONSOLIDATED INVOICE TRAVEL 13/01/13-28/01/13,DE21 6BF,Admin
Food Standards Agency,Food Standards Agency,05/02/2013,Travel UK ,Foodborne Diseases Branch,Capita Business Travel Ltd,LI507105,62.8,FSA CONSOLIDATED INVOICE TRAVEL 13/01/13-28/01/13,DE21 6BF,Admin
Food Standards Agency,Food Standards Agency,05/02/2013,Travel UK ,Animal Feed Branch,Capita Business Travel Ltd,LI507105,59.9,FSA CONSOLIDATED INVOICE TRAVEL 13/01/13-28/01/13,DE21 6BF,Admin
Food Standards Agency,Food Standards Agency,05/02/2013,International Travel,Animal Feed Branch,Capita Business Travel Ltd,LI507105,138.75,FSA CONSOLIDATED INVOICE TRAVEL 13/01/13-28/01/13,DE21 6BF,Admin
Food Standards Agency,Food Standards Agency,05/02/2013,Travel UK ,Nutrition Science Head of Unit,Capita Business Travel Ltd,LI507105,26.5,FSA CONSOLIDATED INVOICE TRAVEL 13/01/13-28/01/13,DE21 6BF,Admin
Food Standards Agency,Food Standards Agency,05/02/2013,Travel UK ,Nutrition Research & Expert Advice,Capita Business Travel Ltd,LI507105,105.4,FSA CONSOLIDATED INVOICE TRAVEL 13/01/13-28/01/13,DE21 6BF,Admin
Food Standards Agency,Food Standards Agency,05/02/2013,Travel UK ,Allergens,Capita Business Travel Ltd,LI507105,174.2,FSA CONSOLIDATED INVOICE TRAVEL 13/01/13-28/01/13,DE21 6BF,Admin
Food Standards Agency,Food Standards Agency,05/02/2013,International Travel,Allergens,Capita Business Travel Ltd,LI507105,148.75,FSA CONSOLIDATED INVOICE TRAVEL 13/01/13-28/01/13,DE21 6BF,Admin
Food Standards Agency,Food Standards Agency,05/02/2013,International Travel,Additives,Capita Business Travel Ltd,LI507105,242.5,FSA CONSOLIDATED INVOICE TRAVEL 13/01/13-28/01/13,DE21 6BF,Admin
Food Standards Agency,Food Standards Agency,05/02/2013,Subsistence UK,Food Policy Strategy HoD,Booking Services International Ltd,22764238/1,438.6,FSA HOTEL & ACCOMMODATION CONSOLIDATED INVOICE 13/01/13 to 28/01/13,TA1 2PF,Admin
Food Standards Agency,Food Standards Agency,05/02/2013,Conference and meeting facilities including accommodation,Food Policy Strategy HoD,Booking Services International Ltd,22764238/1,"1,288.00",FSA HOTEL & ACCOMMODATION CONSOLIDATED INVOICE 13/01/13 to 28/01/13,TA1 2PF,Admin
Food Standards Agency,Food Standards Agency,05/02/2013,Travel UK ,Food Policy Strategy HoD,Capita Business Travel Ltd,LI507105,648.04,FSA CONSOLIDATED INVOICE TRAVEL 13/01/13-28/01/13,DE21 6BF,Admin
Food Standards Agency,Food Standards Agency,05/02/2013,Subsistence UK,Planning and Performance,Booking Services International Ltd,22764238/1,249.6,FSA HOTEL & ACCOMMODATION CONSOLIDATED INVOICE 13/01/13 to 28/01/13,TA1 2PF,Admin
Food Standards Agency,Food Standards Agency,05/02/2013,Travel UK ,Planning and Performance,Capita Business Travel Ltd,LI507105,"1,077.00",FSA CONSOLIDATED INVOICE TRAVEL 13/01/13-28/01/13,DE21 6BF,Admin
Food Standards Agency,Food Standards Agency,05/02/2013,Car hire expenses (short term),Planning and Performance,Capita Business Travel Ltd,LI507105,213.2,FSA CONSOLIDATED INVOICE TRAVEL 13/01/13-28/01/13,DE21 6BF,Admin
Food Standards Agency,Food Standards Agency,05/02/2013,Travel UK ,Better Regulations & Sustainable Development,Capita Business Travel Ltd,LI507105,926.15,FSA CONSOLIDATED INVOICE TRAVEL 13/01/13-28/01/13,DE21 6BF,Admin
Food Standards Agency,Food Standards Agency,05/02/2013,International Travel,Better Regulations & Sustainable Development,Capita Business Travel Ltd,LI507105,218.75,FSA CONSOLIDATED INVOICE TRAVEL 13/01/13-28/01/13,DE21 6BF,Admin
Food Standards Agency,Food Standards Agency,05/02/2013,Postal charges,Better Regulations & Sustainable Development,Capita Business Travel Ltd,LI507105,7,FSA CONSOLIDATED INVOICE TRAVEL 13/01/13-28/01/13,DE21 6BF,Admin
Food Standards Agency,Food Standards Agency,05/02/2013,Travel UK ,Food Policy Private Office,Capita Business Travel Ltd,LI507105,71.9,FSA CONSOLIDATED INVOICE TRAVEL 13/01/13-28/01/13,DE21 6BF,Admin
Food Standards Agency,Food Standards Agency,05/02/2013,Subsistence UK,Finance Director & Branch,Booking Services International Ltd,22764238/1,123.6,FSA HOTEL & ACCOMMODATION CONSOLIDATED INVOICE 13/01/13 to 28/01/13,TA1 2PF,Admin
Food Standards Agency,Food Standards Agency,05/02/2013,Travel UK ,Finance Director & Branch,Capita Business Travel Ltd,LI507105,258.9,FSA CONSOLIDATED INVOICE TRAVEL 13/01/13-28/01/13,DE21 6BF,Admin
Food Standards Agency,Food Standards Agency,05/02/2013,Travel UK ,Finance Director & Branch,Capita Business Travel Ltd,LI507105,"2,346.40",FSA CONSOLIDATED INVOICE TRAVEL 13/01/13-28/01/13,DE21 6BF,Admin
Food Standards Agency,Food Standards Agency,05/02/2013,Civil service pension administration,HR,Cabinet Office,250005783,"21,089.82",411536 PENSION ADMIN 01/11/12-31/03/13,CF14 3UW,Admin
Food Standards Agency,Food Standards Agency,05/02/2013,Civil service pension administration,HR,Cabinet Office,250005783,"4,217.96",411536 PENSION ADMIN 01/11/12-31/03/13,CF14 3UW,Admin
Food Standards Agency,Food Standards Agency,05/02/2013,Subsistence UK,HR,Booking Services International Ltd,22764238/1,732.81,FSA HOTEL & ACCOMMODATION CONSOLIDATED INVOICE 13/01/13 to 28/01/13,TA1 2PF,Admin
Food Standards Agency,Food Standards Agency,05/02/2013,Conference and meeting facilities including accommodation,HR,Booking Services International Ltd,22764238/1,55,FSA HOTEL & ACCOMMODATION CONSOLIDATED INVOICE 13/01/13 to 28/01/13,TA1 2PF,Admin
Food Standards Agency,Food Standards Agency,05/02/2013,Travel UK ,HR,Capita Business Travel Ltd,LI507105,"5,199.50",FSA CONSOLIDATED INVOICE TRAVEL 13/01/13-28/01/13,DE21 6BF,Admin
Food Standards Agency,Food Standards Agency,05/02/2013,Subsistence UK,Procurement,Booking Services International Ltd,22764238/1,202.6,FSA HOTEL & ACCOMMODATION CONSOLIDATED INVOICE 13/01/13 to 28/01/13,TA1 2PF,Admin
Food Standards Agency,Food Standards Agency,05/02/2013,Travel UK ,Procurement,Capita Business Travel Ltd,LI507105,"1,015.30",FSA CONSOLIDATED INVOICE TRAVEL 13/01/13-28/01/13,DE21 6BF,Admin
Food Standards Agency,Food Standards Agency,05/02/2013,Subsistence UK,IT HoD,Booking Services International Ltd,22764238/1,271.2,FSA HOTEL & ACCOMMODATION CONSOLIDATED INVOICE 13/01/13 to 28/01/13,TA1 2PF,Admin
Food Standards Agency,Food Standards Agency,05/02/2013,Travel UK ,IT HoD,Capita Business Travel Ltd,LI507105,"1,475.71",FSA CONSOLIDATED INVOICE TRAVEL 13/01/13-28/01/13,DE21 6BF,Admin
Food Standards Agency,Food Standards Agency,05/02/2013,IT Development projects,IT Strategy,Capita Secure Information Solutions Ltd,92812057,"91,035.00","PO 410778 CAPITA - APPLICATION DEVELOPMENT, ICT TRAINING, ICT PROGRAMME/PROJECT MANAGEMENT AND TECHNICAL PROJECT DELIVERY DAYS FOR OCTOBER 2012",SN14 0TW,Admin
Food Standards Agency,Food Standards Agency,05/02/2013,Subsistence UK,Security & Estates,Booking Services International Ltd,22764238/1,135.6,FSA HOTEL & ACCOMMODATION CONSOLIDATED INVOICE 13/01/13 to 28/01/13,TA1 2PF,Admin
Food Standards Agency,Food Standards Agency,05/02/2013,Travel UK ,Security & Estates,Capita Business Travel Ltd,LI507105,362,FSA CONSOLIDATED INVOICE TRAVEL 13/01/13-28/01/13,DE21 6BF,Admin
Food Standards Agency,Food Standards Agency,05/02/2013,Travel UK ,IT Information & Knowledge Management,Capita Business Travel Ltd,LI507105,14.5,FSA CONSOLIDATED INVOICE TRAVEL 13/01/13-28/01/13,DE21 6BF,Admin
Food Standards Agency,Food Standards Agency,05/02/2013,Subsistence UK,Internal Audit,Booking Services International Ltd,22764238/1,538.85,FSA HOTEL & ACCOMMODATION CONSOLIDATED INVOICE 13/01/13 to 28/01/13,TA1 2PF,Admin
Food Standards Agency,Food Standards Agency,05/02/2013,Travel UK ,Internal Audit,Capita Business Travel Ltd,LI507105,621.9,FSA CONSOLIDATED INVOICE TRAVEL 13/01/13-28/01/13,DE21 6BF,Admin
Food Standards Agency,Food Standards Agency,05/02/2013,Subsistence UK,Area 1 Scotland - Cluster 11,Booking Services International Ltd,22764238/1,80,FSA HOTEL & ACCOMMODATION CONSOLIDATED INVOICE 13/01/13 to 28/01/13,TA1 2PF,Programme
Food Standards Agency,Food Standards Agency,05/02/2013,Travel UK ,Operational Delivery,Capita Business Travel Ltd,LI507105,219.03,FSA CONSOLIDATED INVOICE TRAVEL 13/01/13-28/01/13,DE21 6BF,Programme
Food Standards Agency,Food Standards Agency,05/02/2013,Subsistence UK,Area 5 South West England - Cluster 51,Booking Services International Ltd,22764238/1,123.6,FSA HOTEL & ACCOMMODATION CONSOLIDATED INVOICE 13/01/13 to 28/01/13,TA1 2PF,Programme
Food Standards Agency,Food Standards Agency,05/02/2013,Subsistence UK,Area 5 South West England - Cluster 54,Booking Services International Ltd,22764238/1,70,FSA HOTEL & ACCOMMODATION CONSOLIDATED INVOICE 13/01/13 to 28/01/13,TA1 2PF,Programme
Food Standards Agency,Food Standards Agency,07/02/2013,Subscriptions to professional bodies,Operational Delivery,Association Of Meat Inspectors Trust,8113,"25,000.00",PO 411705 AMI CORPORATE MEMBERSHIP,DD5 4RY,Programme
Food Standards Agency,Food Standards Agency,07/02/2013,Programme Evidence & Research Expenditure,Microbiological Food Safety Branch,Agri-Food & Biosciences Institute,INV07744,"34,283.00",409040 FS241042 MICROBIOLOGY  SURVEY LISTERIA,BT9 5PX,Programme
Food Standards Agency,Food Standards Agency,07/02/2013,Programme Evidence & Research Expenditure,Microbiological Food Safety Branch,Agri-Food & Biosciences Institute,INV07744,"6,856.60",409040 FS241042 MICROBIOLOGY  SURVEY LISTERIA,BT9 5PX,Programme
Food Standards Agency,Food Standards Agency,07/02/2013,IT Development projects,IT Strategy,Capita Secure Information Solutions Ltd,92812063,"91,035.00","PO 411558 CAPITA - APPLICATION DEVELOPMENT, ICT TRAINING, ICT PROGRAMME/PROJECT MANAGEMENT AND TECHNICAL PROJECT DELIVERY DAYS FOR NOVEMBER 2012",SN14 0TW,Admin
Food Standards Agency,Food Standards Agency,07/02/2013,IT Development projects,IT Strategy,Capita Secure Information Solutions Ltd,92812064,"91,035.00","PO 411558 CAPITA - APPLICATION DEVELOPMENT, ICT TRAINING, ICT PROGRAMME/PROJECT MANAGEMENT AND TECHNICAL PROJECT DELIVERY DAYS FOR DECEMBER 2012",SN14 0TW,Admin
Food Standards Agency,Food Standards Agency,07/02/2013,IT Development projects,IT Strategy,Capita Secure Information Solutions Ltd,92812065,"91,035.00","PO 411558 CAPITA - APPLICATION DEVELOPMENT, ICT TRAINING, ICT PROGRAMME/PROJECT MANAGEMENT AND TECHNICAL PROJECT DELIVERY DAYS FOR JANUARY 2013",SN14 0TW,Admin
Food Standards Agency,Food Standards Agency,11/02/2013,Project Programme expenditure,Delivery,N S F Safety & Quality UK Ltd,5028063,"25,469.85","PO 408190 158 DEC COACHING VISITS, 14 DEC 12 NO SHOWS",OX29 8SJ,Programme
Food Standards Agency,Food Standards Agency,11/02/2013,Project Programme expenditure,Delivery,C E F A S,8002522,"26,584.00",PO 408718 QTR 3 INVOICE 1 OCT-31 DEC 12,NR33 0HT,Programme
Food Standards Agency,Food Standards Agency,11/02/2013,Project Programme expenditure,Delivery,Campden Bri,20058420,"14,870.00",408439 ECOLI & HACCP COURSES JAN13,GL55 6LD,Programme
Food Standards Agency,Food Standards Agency,11/02/2013,Project Programme expenditure,Delivery,Campden Bri,20058420,"13,200.00",408439 ECOLI & HACCP COURSES JAN13,GL55 6LD,Programme
Food Standards Agency,Food Standards Agency,11/02/2013,Project Programme expenditure,Delivery,Campden Bri,20058420,"5,125.00",408439 ECOLI & HACCP COURSES JAN13,GL55 6LD,Programme
Food Standards Agency,Food Standards Agency,11/02/2013,Project Programme expenditure,Delivery,Campden Bri,20058420,"2,200.00",408439 ECOLI & HACCP COURSES JAN13,GL55 6LD,Programme
Food Standards Agency,Food Standards Agency,11/02/2013,Legal  - FSA,Operational Delivery,Treasury Solicitor,LT72401E/JUJ/A4,"59,766.27",PO 411704 ,WC2B 4TS,Programme
Food Standards Agency,Food Standards Agency,11/02/2013,ASD support services,Finance Director & Branch,DEFRA,1000021314,"88,750.00",PO 408925 SSD QUARTERLY CHARGINGFOR EXTERNAL AGANCIES,YO1 7PX,Admin
Food Standards Agency,Food Standards Agency,11/02/2013,ASD support services,Finance Director & Branch,DEFRA,1000021314,"17,750.00",PO 408925 SSD QUARTERLY CHARGINGFOR EXTERNAL AGANCIES,YO1 7PX,Admin
Food Standards Agency,Food Standards Agency,11/02/2013,ASD support services,Finance Director & Branch,DEFRA,1000019952A,"109,750.00",408925 SSD QRTLY CHARGE 31/05/12,YO1 7PX,Admin
Food Standards Agency,Food Standards Agency,11/02/2013,ASD support services,Finance Director & Branch,DEFRA,1000019952A,"21,950.00",408925 SSD QRTLY CHARGE 31/05/12,YO1 7PX,Admin
Food Standards Agency,Food Standards Agency,11/02/2013,Project Programme expenditure,Delivery,C E F A S,8002448,"333,194.60",OFF CONTRL SHELLFISH SAMPLE ANALYSIS ,NR33 0HT,Programme
Food Standards Agency,Food Standards Agency,13/02/2013,Programme Evidence & Research Expenditure,Chemical Risk Assessment Unit,University Of Hull,SOIN 49242,"70,000.00",PO 408162CONTRACT VARIATION FS2231010,HU6 7RX,Programme
Food Standards Agency,Food Standards Agency,13/02/2013,Utilities,Security & Estates,E D F Energy,152,"26,778.03",EDF INV152 JAN13 ELEC CHARGES,PL3 5XQ,Admin
Food Standards Agency,Food Standards Agency,13/02/2013,Utilities,Security & Estates,E D F Energy,152,"5,355.61",EDF INV152 JAN13 ELEC CHARGES,PL3 5XQ,Admin
Food Standards Agency,Food Standards Agency,13/02/2013,Service charges,Security & Estates,G4s Integrated Services (Uk) Ltd,M10229A,"27,813.58",407801 SERV PROV PAU229 DEC12,S81 7QF,Admin
Food Standards Agency,Food Standards Agency,13/02/2013,Service charges,Security & Estates,G4s Integrated Services (Uk) Ltd,M10229A,"27,813.58",407801 SERV PROV PAU229 DEC12,S81 7QF,Admin
Food Standards Agency,Food Standards Agency,13/02/2013,Service charges,Security & Estates,G4s Integrated Services (Uk) Ltd,M10229A,"16,129.33",407801 SERV PROV PAU229 DEC12,S81 7QF,Admin
Food Standards Agency,Food Standards Agency,13/02/2013,Service charges,Security & Estates,G4s Integrated Services (Uk) Ltd,M10229A,"16,129.33",407801 SERV PROV PAU229 DEC12,S81 7QF,Admin
Food Standards Agency,Food Standards Agency,13/02/2013,Service charges,Security & Estates,G4s Integrated Services (Uk) Ltd,M10229A,"2,939.91",407801 SERV PROV PAU229 DEC12,S81 7QF,Admin
Food Standards Agency,Food Standards Agency,13/02/2013,Service charges,Security & Estates,G4s Integrated Services (Uk) Ltd,M10229A,"-16,129.33",407801 SERV PROV PAU229 DEC12,S81 7QF,Admin
Food Standards Agency,Food Standards Agency,13/02/2013,Service charges,Security & Estates,G4s Integrated Services (Uk) Ltd,M10229A,"-27,813.58",407801 SERV PROV PAU229 DEC12,S81 7QF,Admin
Food Standards Agency,Food Standards Agency,13/02/2013,Office machinery: hire,Security & Estates,G4s Integrated Services (Uk) Ltd,M10229A,"3,244.00",407801 SERV PROV PAU229 DEC12,S81 7QF,Admin
Food Standards Agency,Food Standards Agency,13/02/2013,Security,Security & Estates,G4s Integrated Services (Uk) Ltd,M10229A,"18,775.38",407801 SERV PROV PAU229 DEC12,S81 7QF,Admin
Food Standards Agency,Food Standards Agency,13/02/2013,Service charges,Security & Estates,G4s Integrated Services (Uk) Ltd,M10545,"46,882.82",G4S INVM10545 JAN13 FM CHARGES,S81 7QF,Admin
Food Standards Agency,Food Standards Agency,13/02/2013,Stationery,Security & Estates,G4s Integrated Services (Uk) Ltd,M10545,"3,244.00",G4S INVM10545 JAN13 FM CHARGES,S81 7QF,Admin
Food Standards Agency,Food Standards Agency,13/02/2013,Security,Security & Estates,G4s Integrated Services (Uk) Ltd,M10545,"18,775.38",G4S INVM10545 JAN13 FM CHARGES,S81 7QF,Admin
Food Standards Agency,Food Standards Agency,15/02/2013,Project Programme expenditure,Incidents & Food Fraud,Birmingham City Council,9001206800,"40,296.51",PO 409353 FSA INCIDENTS UNIT FIGHTING FUND,B4 7AD,Programme
Food Standards Agency,Food Standards Agency,15/02/2013,Programme Evidence & Research Expenditure,Allergens,IFR Enterprises Ltd,INV0003190A,"32,243.72",PO 404575 MANAGEMENT OF FOOD ALLERGENS,NR4 7UA,Programme
Food Standards Agency,Food Standards Agency,15/02/2013,Programme Evidence & Research Expenditure,Allergens,IFR Enterprises Ltd,INV0003190A,"6,448.74",PO 404575 MANAGEMENT OF FOOD ALLERGENS,NR4 7UA,Programme
Food Standards Agency,Food Standards Agency,15/02/2013,Programme Evidence & Research Expenditure,Allergens,IFR Enterprises Ltd,INV0003190A,"6,166.72",PO 404575 MANAGEMENT OF FOOD ALLERGENS,NR4 7UA,Programme
Food Standards Agency,Food Standards Agency,15/02/2013,Programme Evidence & Research Expenditure,Allergens,IFR Enterprises Ltd,INV0003190A,"6,166.72",PO 404575 MANAGEMENT OF FOOD ALLERGENS,NR4 7UA,Programme
Food Standards Agency,Food Standards Agency,15/02/2013,Programme Evidence & Research Expenditure,Allergens,IFR Enterprises Ltd,INV0003190A,"6,166.72",PO 404575 MANAGEMENT OF FOOD ALLERGENS,NR4 7UA,Programme
Food Standards Agency,Food Standards Agency,15/02/2013,Programme Evidence & Research Expenditure,Allergens,IFR Enterprises Ltd,INV0003190A,"1,233.34",PO 404575 MANAGEMENT OF FOOD ALLERGENS,NR4 7UA,Programme
Food Standards Agency,Food Standards Agency,15/02/2013,Programme Evidence & Research Expenditure,Allergens,IFR Enterprises Ltd,INV0003190A,"1,233.34",PO 404575 MANAGEMENT OF FOOD ALLERGENS,NR4 7UA,Programme
Food Standards Agency,Food Standards Agency,15/02/2013,Programme Evidence & Research Expenditure,Allergens,IFR Enterprises Ltd,INV0003190A,"1,233.34",PO 404575 MANAGEMENT OF FOOD ALLERGENS,NR4 7UA,Programme
Food Standards Agency,Food Standards Agency,15/02/2013,Programme Evidence & Research Expenditure,Allergens,Kings College London,RGI-12131451,"28,000.00",PO 400797 TOLERANCE IN INFANTS,SE1 3QD,Programme
Food Standards Agency,Food Standards Agency,15/02/2013,Civil service pension administration,Finance Director & Branch,London Pensions Fund Authority,Feb-13,"138,333.33",408024 RGFS/ACCOUNT595,EC3N 4LP,Admin
Food Standards Agency,Food Standards Agency,19/02/2013,Project Programme expenditure,Analysis & Research Branch,Food & Environment Research Agency,F0027279,"38,738.16",PO 409510 PROJECT FS131021,YO41 1LZ,Programme
Food Standards Agency,Food Standards Agency,19/02/2013,Project Programme expenditure,Analysis & Research Branch,Food & Environment Research Agency,F0027279,"35,331.32",PO 409510 PROJECT FS131021,YO41 1LZ,Programme
Food Standards Agency,Food Standards Agency,19/02/2013,Project Programme expenditure,Contaminants Policy & Strategy Unit,Animal Health and Veterinary Laboratories Agency,5000020679,"60,529.00",400807 LAB SURV NOV13,KT15 3NB,Programme
Food Standards Agency,Food Standards Agency,19/02/2013,Programme Evidence & Research Expenditure,Food Production Branch,Hutchinson Scientific Ltd,HS12/15,"24,713.80",404306 DELIVERABLE 7 DEC12,DD4 7RH,Programme
Food Standards Agency,Food Standards Agency,21/02/2013,Travel UK ,Area 1 Scotland - Cluster 11,Capita Business Travel Ltd,LI512861,608.78,FSA CONSOLIDATED INVOICE TRAVEL 29-JAN-12-FEB 13,DE21 6BF,Programme
Food Standards Agency,Food Standards Agency,21/02/2013,Travel UK ,Area 1 Scotland - Cluster 12,Capita Business Travel Ltd,LI512861,304.48,FSA CONSOLIDATED INVOICE TRAVEL 29-JAN-12-FEB 13,DE21 6BF,Programme
Food Standards Agency,Food Standards Agency,21/02/2013,Travel UK ,Area 1 Scotland - Cluster 13,Capita Business Travel Ltd,LI512861,82.8,FSA CONSOLIDATED INVOICE TRAVEL 29-JAN-12-FEB 13,DE21 6BF,Programme
Food Standards Agency,Food Standards Agency,21/02/2013,Travel UK ,Area 1 Scotland - Cluster 15,Capita Business Travel Ltd,LI512861,104.4,FSA CONSOLIDATED INVOICE TRAVEL 29-JAN-12-FEB 13,DE21 6BF,Programme
Food Standards Agency,Food Standards Agency,21/02/2013,Travel UK ,Area 2 Wales - Cluster 21,Capita Business Travel Ltd,LI512861,366.6,FSA CONSOLIDATED INVOICE TRAVEL 29-JAN-12-FEB 13,DE21 6BF,Programme
Food Standards Agency,Food Standards Agency,21/02/2013,Travel UK ,Area 2 Wales - Cluster 23,Capita Business Travel Ltd,LI512861,115.6,FSA CONSOLIDATED INVOICE TRAVEL 29-JAN-12-FEB 13,DE21 6BF,Programme
Food Standards Agency,Food Standards Agency,21/02/2013,Car hire expenses (short term),Area 2 Wales - Cluster 23,Capita Business Travel Ltd,LI512861,239.83,FSA CONSOLIDATED INVOICE TRAVEL 29-JAN-12-FEB 13,DE21 6BF,Programme
Food Standards Agency,Food Standards Agency,21/02/2013,Travel UK ,Area 3 North West England - Cluster 31,Capita Business Travel Ltd,LI512861,358.1,FSA CONSOLIDATED INVOICE TRAVEL 29-JAN-12-FEB 13,DE21 6BF,Programme
Food Standards Agency,Food Standards Agency,21/02/2013,Travel UK ,Area 3 North West England - Cluster 33,Capita Business Travel Ltd,LI512861,111.2,FSA CONSOLIDATED INVOICE TRAVEL 29-JAN-12-FEB 13,DE21 6BF,Programme
Food Standards Agency,Food Standards Agency,21/02/2013,Travel UK ,Area 3 North West England - Cluster 34,Capita Business Travel Ltd,LI512861,73.5,FSA CONSOLIDATED INVOICE TRAVEL 29-JAN-12-FEB 13,DE21 6BF,Programme
Food Standards Agency,Food Standards Agency,21/02/2013,Travel UK ,Area 3 North West England - Cluster 35,Capita Business Travel Ltd,LI512861,43.8,FSA CONSOLIDATED INVOICE TRAVEL 29-JAN-12-FEB 13,DE21 6BF,Programme
Food Standards Agency,Food Standards Agency,21/02/2013,Travel UK ,Area 3 North West England - Cluster 36,Capita Business Travel Ltd,LI512861,61.8,FSA CONSOLIDATED INVOICE TRAVEL 29-JAN-12-FEB 13,DE21 6BF,Programme
Food Standards Agency,Food Standards Agency,21/02/2013,Travel UK ,Area 4 North East England - Cluster 41,Capita Business Travel Ltd,LI512861,242.2,FSA CONSOLIDATED INVOICE TRAVEL 29-JAN-12-FEB 13,DE21 6BF,Programme
Food Standards Agency,Food Standards Agency,21/02/2013,Travel UK ,Area 4 North East England - Cluster 42,Capita Business Travel Ltd,LI512861,34.4,FSA CONSOLIDATED INVOICE TRAVEL 29-JAN-12-FEB 13,DE21 6BF,Programme
Food Standards Agency,Food Standards Agency,21/02/2013,Travel UK ,Area 4 North East England - Cluster 43,Capita Business Travel Ltd,LI512861,371.2,FSA CONSOLIDATED INVOICE TRAVEL 29-JAN-12-FEB 13,DE21 6BF,Programme
Food Standards Agency,Food Standards Agency,21/02/2013,Travel UK ,Area 4 North East England - Cluster 44,Capita Business Travel Ltd,LI512861,213.2,FSA CONSOLIDATED INVOICE TRAVEL 29-JAN-12-FEB 13,DE21 6BF,Programme
Food Standards Agency,Food Standards Agency,21/02/2013,Travel UK ,Area 4 North East England - Cluster 47,Capita Business Travel Ltd,LI512861,50.9,FSA CONSOLIDATED INVOICE TRAVEL 29-JAN-12-FEB 13,DE21 6BF,Programme
Food Standards Agency,Food Standards Agency,21/02/2013,Travel UK ,Area 5 South West England - Cluster 51,Capita Business Travel Ltd,LI512861,177.4,FSA CONSOLIDATED INVOICE TRAVEL 29-JAN-12-FEB 13,DE21 6BF,Programme
Food Standards Agency,Food Standards Agency,21/02/2013,Travel UK ,Area 5 South West England - Cluster 52,Capita Business Travel Ltd,LI512861,32,FSA CONSOLIDATED INVOICE TRAVEL 29-JAN-12-FEB 13,DE21 6BF,Programme
Food Standards Agency,Food Standards Agency,21/02/2013,Travel UK ,Area 5 South West England - Cluster 54,Capita Business Travel Ltd,LI512861,226,FSA CONSOLIDATED INVOICE TRAVEL 29-JAN-12-FEB 13,DE21 6BF,Programme
Food Standards Agency,Food Standards Agency,21/02/2013,Travel UK ,Area 5 South West England - Cluster 55,Capita Business Travel Ltd,LI512861,422,FSA CONSOLIDATED INVOICE TRAVEL 29-JAN-12-FEB 13,DE21 6BF,Programme
Food Standards Agency,Food Standards Agency,21/02/2013,Travel UK ,Area 5 South West England - Cluster 56,Capita Business Travel Ltd,LI512861,102.9,FSA CONSOLIDATED INVOICE TRAVEL 29-JAN-12-FEB 13,DE21 6BF,Programme
Food Standards Agency,Food Standards Agency,21/02/2013,Travel UK ,Area 5 South West England - Cluster 57,Capita Business Travel Ltd,LI512861,111.4,FSA CONSOLIDATED INVOICE TRAVEL 29-JAN-12-FEB 13,DE21 6BF,Programme
Food Standards Agency,Food Standards Agency,21/02/2013,Travel UK ,Area 6 South East England - Cluster 61,Capita Business Travel Ltd,LI512861,56.9,FSA CONSOLIDATED INVOICE TRAVEL 29-JAN-12-FEB 13,DE21 6BF,Programme
Food Standards Agency,Food Standards Agency,21/02/2013,Travel UK ,Area 6 South East England - Cluster 62,Capita Business Travel Ltd,LI512861,343.3,FSA CONSOLIDATED INVOICE TRAVEL 29-JAN-12-FEB 13,DE21 6BF,Programme
Food Standards Agency,Food Standards Agency,21/02/2013,Travel UK ,Area 6 South East England - Cluster 63,Capita Business Travel Ltd,LI512861,664,FSA CONSOLIDATED INVOICE TRAVEL 29-JAN-12-FEB 13,DE21 6BF,Programme
Food Standards Agency,Food Standards Agency,21/02/2013,Travel UK ,Area 6 South East England - Cluster 64,Capita Business Travel Ltd,LI512861,640.7,FSA CONSOLIDATED INVOICE TRAVEL 29-JAN-12-FEB 13,DE21 6BF,Programme
Food Standards Agency,Food Standards Agency,21/02/2013,Travel UK ,Area 6 South East England - Cluster 65,Capita Business Travel Ltd,LI512861,739.6,FSA CONSOLIDATED INVOICE TRAVEL 29-JAN-12-FEB 13,DE21 6BF,Programme
Food Standards Agency,Food Standards Agency,21/02/2013,Travel UK ,Area 6 South East England - Cluster 66,Capita Business Travel Ltd,LI512861,655.4,FSA CONSOLIDATED INVOICE TRAVEL 29-JAN-12-FEB 13,DE21 6BF,Programme
Food Standards Agency,Food Standards Agency,21/02/2013,Travel UK ,Chief Executive & Private Office,Capita Business Travel Ltd,LI512861,907.5,FSA CONSOLIDATED INVOICE TRAVEL 29-JAN-12-FEB 13,DE21 6BF,Admin
Food Standards Agency,Food Standards Agency,21/02/2013,Travel UK ,Chair & Deputy Chair,Capita Business Travel Ltd,LI512861,341.7,FSA CONSOLIDATED INVOICE TRAVEL 29-JAN-12-FEB 13,DE21 6BF,Admin
Food Standards Agency,Food Standards Agency,21/02/2013,Travel UK ,FSA Board,Capita Business Travel Ltd,LI512861,371.92,FSA CONSOLIDATED INVOICE TRAVEL 29-JAN-12-FEB 13,DE21 6BF,Admin
Food Standards Agency,Food Standards Agency,21/02/2013,Travel UK ,Legal Branch A,Capita Business Travel Ltd,LI512861,265.9,FSA CONSOLIDATED INVOICE TRAVEL 29-JAN-12-FEB 13,DE21 6BF,Admin
Food Standards Agency,Food Standards Agency,21/02/2013,Travel UK ,Investigations,Capita Business Travel Ltd,LI512861,605.3,FSA CONSOLIDATED INVOICE TRAVEL 29-JAN-12-FEB 13,DE21 6BF,Admin
Food Standards Agency,Food Standards Agency,21/02/2013,Car hire expenses (short term),Investigations,Capita Business Travel Ltd,LI512861,352.47,FSA CONSOLIDATED INVOICE TRAVEL 29-JAN-12-FEB 13,DE21 6BF,Admin
Food Standards Agency,Food Standards Agency,21/02/2013,Travel UK ,Chief Scientist,Capita Business Travel Ltd,LI512861,3.5,FSA CONSOLIDATED INVOICE TRAVEL 29-JAN-12-FEB 13,DE21 6BF,Admin
Food Standards Agency,Food Standards Agency,21/02/2013,Car hire expenses (short term),Chief Scientist,Capita Business Travel Ltd,LI512861,99.14,FSA CONSOLIDATED INVOICE TRAVEL 29-JAN-12-FEB 13,DE21 6BF,Admin
Food Standards Agency,Food Standards Agency,21/02/2013,Travel UK ,Analysis & Research Branch,Capita Business Travel Ltd,LI512861,420.56,FSA CONSOLIDATED INVOICE TRAVEL 29-JAN-12-FEB 13,DE21 6BF,Admin
Food Standards Agency,Food Standards Agency,21/02/2013,International Travel,Analysis & Research Branch,Capita Business Travel Ltd,LI512861,58.75,FSA CONSOLIDATED INVOICE TRAVEL 29-JAN-12-FEB 13,DE21 6BF,Admin
Food Standards Agency,Food Standards Agency,21/02/2013,Travel UK ,Comms Directors Office,Capita Business Travel Ltd,LI512861,835.1,FSA CONSOLIDATED INVOICE TRAVEL 29-JAN-12-FEB 13,DE21 6BF,Admin
Food Standards Agency,Food Standards Agency,21/02/2013,Travel UK ,External Affairs,Capita Business Travel Ltd,LI512861,162.07,FSA CONSOLIDATED INVOICE TRAVEL 29-JAN-12-FEB 13,DE21 6BF,Admin
Food Standards Agency,Food Standards Agency,21/02/2013,Travel UK ,FSA Operations Director & Support,Capita Business Travel Ltd,LI512861,527.7,FSA CONSOLIDATED INVOICE TRAVEL 29-JAN-12-FEB 13,DE21 6BF,Programme
Food Standards Agency,Food Standards Agency,21/02/2013,Travel UK ,Approvals & Veterinary Advice,Capita Business Travel Ltd,LI512861,"2,019.00",FSA CONSOLIDATED INVOICE TRAVEL 29-JAN-12-FEB 13,DE21 6BF,Programme
Food Standards Agency,Food Standards Agency,21/02/2013,Travel UK ,LAALD HoD & Support,Capita Business Travel Ltd,LI512861,"2,966.85",FSA CONSOLIDATED INVOICE TRAVEL 29-JAN-12-FEB 13,DE21 6BF,Admin
Food Standards Agency,Food Standards Agency,21/02/2013,Travel UK ,Incidents & Food Fraud,Capita Business Travel Ltd,LI512861,32.4,FSA CONSOLIDATED INVOICE TRAVEL 29-JAN-12-FEB 13,DE21 6BF,Admin
Food Standards Agency,Food Standards Agency,21/02/2013,Travel UK ,Delivery,Capita Business Travel Ltd,LI512861,"3,623.54",FSA CONSOLIDATED INVOICE TRAVEL 29-JAN-12-FEB 13,DE21 6BF,Admin
Food Standards Agency,Food Standards Agency,21/02/2013,Car hire expenses (short term),Delivery,Capita Business Travel Ltd,LI512861,"1,900.80",FSA CONSOLIDATED INVOICE TRAVEL 29-JAN-12-FEB 13,DE21 6BF,Admin
Food Standards Agency,Food Standards Agency,21/02/2013,Travel UK ,Enforcement Policy,Capita Business Travel Ltd,LI512861,156.5,FSA CONSOLIDATED INVOICE TRAVEL 29-JAN-12-FEB 13,DE21 6BF,Admin
Food Standards Agency,Food Standards Agency,21/02/2013,Travel UK ,Official Controls & Enforcement Strategy,Capita Business Travel Ltd,LI512861,841.6,FSA CONSOLIDATED INVOICE TRAVEL 29-JAN-12-FEB 13,DE21 6BF,Admin
Food Standards Agency,Food Standards Agency,21/02/2013,International Travel,Official Controls & Enforcement Strategy,Capita Business Travel Ltd,LI512861,238.75,FSA CONSOLIDATED INVOICE TRAVEL 29-JAN-12-FEB 13,DE21 6BF,Admin
Food Standards Agency,Food Standards Agency,21/02/2013,Travel UK ,Operational Delivery,Capita Business Travel Ltd,LI512861,"4,868.29",FSA CONSOLIDATED INVOICE TRAVEL 29-JAN-12-FEB 13,DE21 6BF,Programme
Food Standards Agency,Food Standards Agency,21/02/2013,Car hire expenses (short term),Operational Delivery,Capita Business Travel Ltd,LI512861,133.94,FSA CONSOLIDATED INVOICE TRAVEL 29-JAN-12-FEB 13,DE21 6BF,Programme
Food Standards Agency,Food Standards Agency,21/02/2013,Travel UK ,Wine Standards,Capita Business Travel Ltd,LI512861,371.7,FSA CONSOLIDATED INVOICE TRAVEL 29-JAN-12-FEB 13,DE21 6BF,Programme
Food Standards Agency,Food Standards Agency,21/02/2013,Travel UK ,Central Operations Hub,Capita Business Travel Ltd,LI512861,784.1,FSA CONSOLIDATED INVOICE TRAVEL 29-JAN-12-FEB 13,DE21 6BF,Programme
Food Standards Agency,Food Standards Agency,21/02/2013,Travel UK ,Chemical Risk Assessment Unit,Capita Business Travel Ltd,LI512861,119.3,FSA CONSOLIDATED INVOICE TRAVEL 29-JAN-12-FEB 13,DE21 6BF,Admin
Food Standards Agency,Food Standards Agency,21/02/2013,International Travel,Chemical Risk Assessment Unit,Capita Business Travel Ltd,LI512861,183.65,FSA CONSOLIDATED INVOICE TRAVEL 29-JAN-12-FEB 13,DE21 6BF,Admin
Food Standards Agency,Food Standards Agency,21/02/2013,Travel UK ,Contaminants Policy & Strategy Unit,Capita Business Travel Ltd,LI512861,463.4,FSA CONSOLIDATED INVOICE TRAVEL 29-JAN-12-FEB 13,DE21 6BF,Admin
Food Standards Agency,Food Standards Agency,21/02/2013,International Travel,Contaminants Policy & Strategy Unit,Capita Business Travel Ltd,LI512861,651.25,FSA CONSOLIDATED INVOICE TRAVEL 29-JAN-12-FEB 13,DE21 6BF,Admin
Food Standards Agency,Food Standards Agency,21/02/2013,International Travel,Novel Food Unit,Capita Business Travel Ltd,LI512861,203.75,FSA CONSOLIDATED INVOICE TRAVEL 29-JAN-12-FEB 13,DE21 6BF,Admin
Food Standards Agency,Food Standards Agency,21/02/2013,Travel UK ,Hygiene & Microbiology Division HoD,Capita Business Travel Ltd,LI512861,43.9,FSA CONSOLIDATED INVOICE TRAVEL 29-JAN-12-FEB 13,DE21 6BF,Admin
Food Standards Agency,Food Standards Agency,21/02/2013,Travel UK ,Microbiological Food Safety Branch,Capita Business Travel Ltd,LI512861,40.8,FSA CONSOLIDATED INVOICE TRAVEL 29-JAN-12-FEB 13,DE21 6BF,Admin
Food Standards Agency,Food Standards Agency,21/02/2013,International Travel,EU Regulatory Reform Branch,Capita Business Travel Ltd,LI512861,622.25,FSA CONSOLIDATED INVOICE TRAVEL 29-JAN-12-FEB 13,DE21 6BF,Admin
Food Standards Agency,Food Standards Agency,21/02/2013,International Travel,Food Hygiene Policy Branch,Capita Business Travel Ltd,LI512861,354.75,FSA CONSOLIDATED INVOICE TRAVEL 29-JAN-12-FEB 13,DE21 6BF,Admin
Food Standards Agency,Food Standards Agency,21/02/2013,Travel UK ,Foodborne Diseases Branch,Capita Business Travel Ltd,LI512861,29.8,FSA CONSOLIDATED INVOICE TRAVEL 29-JAN-12-FEB 13,DE21 6BF,Admin
Food Standards Agency,Food Standards Agency,21/02/2013,Travel UK ,Animal Feed Branch,Capita Business Travel Ltd,LI512861,247.4,FSA CONSOLIDATED INVOICE TRAVEL 29-JAN-12-FEB 13,DE21 6BF,Admin
Food Standards Agency,Food Standards Agency,21/02/2013,International Travel,Animal Feed Branch,Capita Business Travel Ltd,LI512861,614,FSA CONSOLIDATED INVOICE TRAVEL 29-JAN-12-FEB 13,DE21 6BF,Admin
Food Standards Agency,Food Standards Agency,21/02/2013,International Travel,Animal Feed Branch,Capita Business Travel Ltd,LI512861,109.42,FSA CONSOLIDATED INVOICE TRAVEL 29-JAN-12-FEB 13,DE21 6BF,Admin
Food Standards Agency,Food Standards Agency,21/02/2013,Travel UK ,Allergens,Capita Business Travel Ltd,LI512861,18.3,FSA CONSOLIDATED INVOICE TRAVEL 29-JAN-12-FEB 13,DE21 6BF,Admin
Food Standards Agency,Food Standards Agency,21/02/2013,Travel UK ,Additives,Capita Business Travel Ltd,LI512861,52.5,FSA CONSOLIDATED INVOICE TRAVEL 29-JAN-12-FEB 13,DE21 6BF,Admin
Food Standards Agency,Food Standards Agency,21/02/2013,International Travel,Additives,Capita Business Travel Ltd,LI512861,133.75,FSA CONSOLIDATED INVOICE TRAVEL 29-JAN-12-FEB 13,DE21 6BF,Admin
Food Standards Agency,Food Standards Agency,21/02/2013,Travel UK ,Food Policy Strategy HoD,Capita Business Travel Ltd,LI512861,"1,925.10",FSA CONSOLIDATED INVOICE TRAVEL 29-JAN-12-FEB 13,DE21 6BF,Admin
Food Standards Agency,Food Standards Agency,21/02/2013,Travel UK ,European & International Strategy,Capita Business Travel Ltd,LI512861,62.7,FSA CONSOLIDATED INVOICE TRAVEL 29-JAN-12-FEB 13,DE21 6BF,Admin
Food Standards Agency,Food Standards Agency,21/02/2013,Travel UK ,Planning and Performance,Capita Business Travel Ltd,LI512861,"1,478.80",FSA CONSOLIDATED INVOICE TRAVEL 29-JAN-12-FEB 13,DE21 6BF,Admin
Food Standards Agency,Food Standards Agency,21/02/2013,Travel UK ,Better Regulations & Sustainable Development,Capita Business Travel Ltd,LI512861,250.6,FSA CONSOLIDATED INVOICE TRAVEL 29-JAN-12-FEB 13,DE21 6BF,Admin
Food Standards Agency,Food Standards Agency,21/02/2013,Travel UK ,Food Policy Private Office,Capita Business Travel Ltd,LI512861,236.1,FSA CONSOLIDATED INVOICE TRAVEL 29-JAN-12-FEB 13,DE21 6BF,Admin
Food Standards Agency,Food Standards Agency,21/02/2013,Travel UK ,Finance Director & Branch,Capita Business Travel Ltd,LI512861,292.6,FSA CONSOLIDATED INVOICE TRAVEL 29-JAN-12-FEB 13,DE21 6BF,Admin
Food Standards Agency,Food Standards Agency,21/02/2013,Travel UK ,HR,Capita Business Travel Ltd,LI512861,"2,286.20",FSA CONSOLIDATED INVOICE TRAVEL 29-JAN-12-FEB 13,DE21 6BF,Admin
Food Standards Agency,Food Standards Agency,21/02/2013,Travel UK ,Procurement,Capita Business Travel Ltd,LI512861,"-1,620.55",FSA CONSOLIDATED INVOICE TRAVEL 29-JAN-12-FEB 13,DE21 6BF,Admin
Food Standards Agency,Food Standards Agency,21/02/2013,Subsistence UK,Procurement,Capita Business Travel Ltd,LI512861,"-12,369.75",FSA CONSOLIDATED INVOICE TRAVEL 29-JAN-12-FEB 13,DE21 6BF,Admin
Food Standards Agency,Food Standards Agency,21/02/2013,Travel UK ,IT HoD,Capita Business Travel Ltd,LI512861,"1,031.00",FSA CONSOLIDATED INVOICE TRAVEL 29-JAN-12-FEB 13,DE21 6BF,Admin
Food Standards Agency,Food Standards Agency,21/02/2013,ASD support services,IT Service Delivery,Capita Secure Information Solutions Ltd,92839483,"296,042.52",PO 411901 SERVICE CHARGE JAN 13,SN14 0TW,Admin
Food Standards Agency,Food Standards Agency,21/02/2013,Travel UK ,Security & Estates,Capita Business Travel Ltd,LI512861,202.25,FSA CONSOLIDATED INVOICE TRAVEL 29-JAN-12-FEB 13,DE21 6BF,Admin
Food Standards Agency,Food Standards Agency,21/02/2013,Travel UK ,Internal Audit,Capita Business Travel Ltd,LI512861,"1,870.63",FSA CONSOLIDATED INVOICE TRAVEL 29-JAN-12-FEB 13,DE21 6BF,Admin
Food Standards Agency,Food Standards Agency,25/02/2013,Subsistence UK,Area 1 Scotland - Cluster 11,Booking Services International Ltd,022782266/1,215,FSA HOTEL & ACCOMMODATION CONSOLIDATED INVOICE 29/01/13 to 12/02/13,TA1 2PF,Programme
Food Standards Agency,Food Standards Agency,25/02/2013,Subsistence UK,Area 1 Scotland - Cluster 12,Booking Services International Ltd,022782266/1,307,FSA HOTEL & ACCOMMODATION CONSOLIDATED INVOICE 29/01/13 to 12/02/13,TA1 2PF,Programme
Food Standards Agency,Food Standards Agency,25/02/2013,Conference and meeting facilities including accommodation,Area 1 Scotland - Cluster 12,Booking Services International Ltd,022782266/1,108.5,FSA HOTEL & ACCOMMODATION CONSOLIDATED INVOICE 29/01/13 to 12/02/13,TA1 2PF,Programme
Food Standards Agency,Food Standards Agency,25/02/2013,Subsistence UK,Area 1 Scotland - Cluster 13,Booking Services International Ltd,022782266/1,102,FSA HOTEL & ACCOMMODATION CONSOLIDATED INVOICE 29/01/13 to 12/02/13,TA1 2PF,Programme
Food Standards Agency,Food Standards Agency,25/02/2013,Conference and meeting facilities including accommodation,Area 1 Scotland - Cluster 13,Booking Services International Ltd,022782266/1,180.5,FSA HOTEL & ACCOMMODATION CONSOLIDATED INVOICE 29/01/13 to 12/02/13,TA1 2PF,Programme
Food Standards Agency,Food Standards Agency,25/02/2013,Subsistence UK,Area 1 Scotland - Cluster 15,Booking Services International Ltd,022782266/1,274,FSA HOTEL & ACCOMMODATION CONSOLIDATED INVOICE 29/01/13 to 12/02/13,TA1 2PF,Programme
Food Standards Agency,Food Standards Agency,25/02/2013,Subsistence UK,Area 2 Wales - Cluster 21,Booking Services International Ltd,022782266/1,140,FSA HOTEL & ACCOMMODATION CONSOLIDATED INVOICE 29/01/13 to 12/02/13,TA1 2PF,Programme
Food Standards Agency,Food Standards Agency,25/02/2013,Subsistence UK,Area 2 Wales - Cluster 22,Booking Services International Ltd,022782266/1,140,FSA HOTEL & ACCOMMODATION CONSOLIDATED INVOICE 29/01/13 to 12/02/13,TA1 2PF,Programme
Food Standards Agency,Food Standards Agency,25/02/2013,Subsistence UK,Area 3 North West England - Cluster 33,Booking Services International Ltd,022782266/1,135,FSA HOTEL & ACCOMMODATION CONSOLIDATED INVOICE 29/01/13 to 12/02/13,TA1 2PF,Programme
Food Standards Agency,Food Standards Agency,25/02/2013,Subsistence UK,Area 3 North West England - Cluster 35,Booking Services International Ltd,022782266/1,70,FSA HOTEL & ACCOMMODATION CONSOLIDATED INVOICE 29/01/13 to 12/02/13,TA1 2PF,Programme
Food Standards Agency,Food Standards Agency,25/02/2013,Subsistence UK,Area 4 North East England - Cluster 44,Booking Services International Ltd,022782266/1,140,FSA HOTEL & ACCOMMODATION CONSOLIDATED INVOICE 29/01/13 to 12/02/13,TA1 2PF,Programme
Food Standards Agency,Food Standards Agency,25/02/2013,Subsistence UK,Area 4 North East England - Cluster 44,Booking Services International Ltd,022782266/1,140,FSA HOTEL & ACCOMMODATION CONSOLIDATED INVOICE 29/01/13 to 12/02/13,TA1 2PF,Programme
Food Standards Agency,Food Standards Agency,25/02/2013,Subsistence UK,Area 4 North East England - Cluster 46,Booking Services International Ltd,022782266/1,140,FSA HOTEL & ACCOMMODATION CONSOLIDATED INVOICE 29/01/13 to 12/02/13,TA1 2PF,Programme
Food Standards Agency,Food Standards Agency,25/02/2013,Conference and meeting facilities including accommodation,Area 4 North East England - Cluster 47,Booking Services International Ltd,022782266/1,95,FSA HOTEL & ACCOMMODATION CONSOLIDATED INVOICE 29/01/13 to 12/02/13,TA1 2PF,Programme
Food Standards Agency,Food Standards Agency,25/02/2013,Subsistence UK,Area 4 North East England - Cluster 47,Booking Services International Ltd,022782266/1,70,FSA HOTEL & ACCOMMODATION CONSOLIDATED INVOICE 29/01/13 to 12/02/13,TA1 2PF,Programme
Food Standards Agency,Food Standards Agency,25/02/2013,Subsistence UK,Area 4 North East England - Cluster 48,Booking Services International Ltd,022782266/1,70,FSA HOTEL & ACCOMMODATION CONSOLIDATED INVOICE 29/01/13 to 12/02/13,TA1 2PF,Programme
Food Standards Agency,Food Standards Agency,25/02/2013,Subsistence UK,Area 5 South West England - Cluster 51,Booking Services International Ltd,022782266/1,86,FSA HOTEL & ACCOMMODATION CONSOLIDATED INVOICE 29/01/13 to 12/02/13,TA1 2PF,Programme
Food Standards Agency,Food Standards Agency,25/02/2013,Subsistence UK,Area 5 South West England - Cluster 52,Booking Services International Ltd,022782266/1,140,FSA HOTEL & ACCOMMODATION CONSOLIDATED INVOICE 29/01/13 to 12/02/13,TA1 2PF,Programme
Food Standards Agency,Food Standards Agency,25/02/2013,Subsistence UK,Area 5 South West England - Cluster 53,Booking Services International Ltd,022782266/1,70,FSA HOTEL & ACCOMMODATION CONSOLIDATED INVOICE 29/01/13 to 12/02/13,TA1 2PF,Programme
Food Standards Agency,Food Standards Agency,25/02/2013,Subsistence UK,Area 5 South West England - Cluster 54,Booking Services International Ltd,022782266/1,140,FSA HOTEL & ACCOMMODATION CONSOLIDATED INVOICE 29/01/13 to 12/02/13,TA1 2PF,Programme
Food Standards Agency,Food Standards Agency,25/02/2013,Subsistence UK,Area 5 South West England - Cluster 57,Booking Services International Ltd,022782266/1,210,FSA HOTEL & ACCOMMODATION CONSOLIDATED INVOICE 29/01/13 to 12/02/13,TA1 2PF,Programme
Food Standards Agency,Food Standards Agency,25/02/2013,Conference and meeting facilities including accommodation,Area 5 South West England - Cluster 57,Booking Services International Ltd,022782266/1,82,FSA HOTEL & ACCOMMODATION CONSOLIDATED INVOICE 29/01/13 to 12/02/13,TA1 2PF,Programme
Food Standards Agency,Food Standards Agency,25/02/2013,Subsistence UK,Area 6 South East England - Cluster 61,Booking Services International Ltd,022782266/1,70,FSA HOTEL & ACCOMMODATION CONSOLIDATED INVOICE 29/01/13 to 12/02/13,TA1 2PF,Programme
Food Standards Agency,Food Standards Agency,25/02/2013,Subsistence UK,Area 6 South East England - Cluster 61,Booking Services International Ltd,022782266/1,130,FSA HOTEL & ACCOMMODATION CONSOLIDATED INVOICE 29/01/13 to 12/02/13,TA1 2PF,Programme
Food Standards Agency,Food Standards Agency,25/02/2013,Subsistence UK,Area 6 South East England - Cluster 62,Booking Services International Ltd,022782266/1,107,FSA HOTEL & ACCOMMODATION CONSOLIDATED INVOICE 29/01/13 to 12/02/13,TA1 2PF,Programme
Food Standards Agency,Food Standards Agency,25/02/2013,Subsistence UK,Area 6 South East England - Cluster 64,Booking Services International Ltd,022782266/1,210,FSA HOTEL & ACCOMMODATION CONSOLIDATED INVOICE 29/01/13 to 12/02/13,TA1 2PF,Programme
Food Standards Agency,Food Standards Agency,25/02/2013,Subsistence UK,Area 6 South East England - Cluster 65,Booking Services International Ltd,022782266/1,99,FSA HOTEL & ACCOMMODATION CONSOLIDATED INVOICE 29/01/13 to 12/02/13,TA1 2PF,Programme
Food Standards Agency,Food Standards Agency,25/02/2013,Subsistence UK,Chief Executive & Private Office,Booking Services International Ltd,022782266/1,"4,039.20",FSA HOTEL & ACCOMMODATION CONSOLIDATED INVOICE 29/01/13 to 12/02/13,TA1 2PF,Admin
Food Standards Agency,Food Standards Agency,25/02/2013,Conference and meeting facilities including accommodation,Chief Executive & Private Office,Booking Services International Ltd,022782266/1,250,FSA HOTEL & ACCOMMODATION CONSOLIDATED INVOICE 29/01/13 to 12/02/13,TA1 2PF,Admin
Food Standards Agency,Food Standards Agency,25/02/2013,Subsistence UK,Chair & Deputy Chair,Booking Services International Ltd,022782266/1,65,FSA HOTEL & ACCOMMODATION CONSOLIDATED INVOICE 29/01/13 to 12/02/13,TA1 2PF,Admin
Food Standards Agency,Food Standards Agency,25/02/2013,Subsistence UK,FSA Board,Booking Services International Ltd,022782266/1,65,FSA HOTEL & ACCOMMODATION CONSOLIDATED INVOICE 29/01/13 to 12/02/13,TA1 2PF,Admin
Food Standards Agency,Food Standards Agency,25/02/2013,Subsistence UK,Chief Scientist,Booking Services International Ltd,022782266/1,140,FSA HOTEL & ACCOMMODATION CONSOLIDATED INVOICE 29/01/13 to 12/02/13,TA1 2PF,Admin
Food Standards Agency,Food Standards Agency,25/02/2013,Subsistence UK,Comms Directors Office,Booking Services International Ltd,022782266/1,"1,007.60",FSA HOTEL & ACCOMMODATION CONSOLIDATED INVOICE 29/01/13 to 12/02/13,TA1 2PF,Admin
Food Standards Agency,Food Standards Agency,25/02/2013,Subsistence UK,FSA Operations Director & Support,Booking Services International Ltd,022782266/1,283.2,FSA HOTEL & ACCOMMODATION CONSOLIDATED INVOICE 29/01/13 to 12/02/13,TA1 2PF,Programme
Food Standards Agency,Food Standards Agency,25/02/2013,Subsistence UK,Approvals & Veterinary Advice,Booking Services International Ltd,022782266/1,"1,226.90",FSA HOTEL & ACCOMMODATION CONSOLIDATED INVOICE 29/01/13 to 12/02/13,TA1 2PF,Programme
Food Standards Agency,Food Standards Agency,25/02/2013,Conference and meeting facilities including accommodation,Approvals & Veterinary Advice,Booking Services International Ltd,022782266/1,"2,004.00",FSA HOTEL & ACCOMMODATION CONSOLIDATED INVOICE 29/01/13 to 12/02/13,TA1 2PF,Programme
Food Standards Agency,Food Standards Agency,25/02/2013,Subsistence UK,LAALD HoD & Support,Booking Services International Ltd,022782266/1,"2,719.91",FSA HOTEL & ACCOMMODATION CONSOLIDATED INVOICE 29/01/13 to 12/02/13,TA1 2PF,Admin
Food Standards Agency,Food Standards Agency,25/02/2013,Conference and meeting facilities including accommodation,LAALD HoD & Support,Booking Services International Ltd,022782266/1,75,FSA HOTEL & ACCOMMODATION CONSOLIDATED INVOICE 29/01/13 to 12/02/13,TA1 2PF,Admin
Food Standards Agency,Food Standards Agency,25/02/2013,Subsistence UK,Incidents & Food Fraud,Booking Services International Ltd,022782266/1,"1,057.60",FSA HOTEL & ACCOMMODATION CONSOLIDATED INVOICE 29/01/13 to 12/02/13,TA1 2PF,Admin
Food Standards Agency,Food Standards Agency,25/02/2013,Programme Evidence & Research Expenditure,Delivery,Cornwall Council,98111575,"38,605.80",PO 408429 NATIONAL CO-ORDINATED RISK BASED FOOD AND FEED SAMPLING 12/13,TR1 3AY,Programme
Food Standards Agency,Food Standards Agency,25/02/2013,Subsistence UK,Delivery,Booking Services International Ltd,022782266/1,"1,324.00",FSA HOTEL & ACCOMMODATION CONSOLIDATED INVOICE 29/01/13 to 12/02/13,TA1 2PF,Admin
Food Standards Agency,Food Standards Agency,25/02/2013,Conference and meeting facilities including accommodation,Delivery,Booking Services International Ltd,022782266/1,580,FSA HOTEL & ACCOMMODATION CONSOLIDATED INVOICE 29/01/13 to 12/02/13,TA1 2PF,Admin
Food Standards Agency,Food Standards Agency,25/02/2013,Subsistence UK,Official Controls & Enforcement Strategy,Booking Services International Ltd,022782266/1,133.92,FSA HOTEL & ACCOMMODATION CONSOLIDATED INVOICE 29/01/13 to 12/02/13,TA1 2PF,Admin
Food Standards Agency,Food Standards Agency,25/02/2013,Subsistence UK,Operational Delivery,Booking Services International Ltd,022782266/1,"2,773.41",FSA HOTEL & ACCOMMODATION CONSOLIDATED INVOICE 29/01/13 to 12/02/13,TA1 2PF,Programme
Food Standards Agency,Food Standards Agency,25/02/2013,Conference and meeting facilities including accommodation,Operational Delivery,Booking Services International Ltd,022782266/1,"1,234.30",FSA HOTEL & ACCOMMODATION CONSOLIDATED INVOICE 29/01/13 to 12/02/13,TA1 2PF,Programme
Food Standards Agency,Food Standards Agency,25/02/2013,Subsistence UK,Wine Standards,Booking Services International Ltd,022782266/1,174,FSA HOTEL & ACCOMMODATION CONSOLIDATED INVOICE 29/01/13 to 12/02/13,TA1 2PF,Programme
Food Standards Agency,Food Standards Agency,25/02/2013,Subsistence UK,Central Operations Hub,Booking Services International Ltd,022782266/1,140,FSA HOTEL & ACCOMMODATION CONSOLIDATED INVOICE 29/01/13 to 12/02/13,TA1 2PF,Programme
Food Standards Agency,Food Standards Agency,25/02/2013,Subsistence UK,Chemical Risk Assessment Unit,Booking Services International Ltd,022782266/1,263.6,FSA HOTEL & ACCOMMODATION CONSOLIDATED INVOICE 29/01/13 to 12/02/13,TA1 2PF,Admin
Food Standards Agency,Food Standards Agency,25/02/2013,Programme Evidence & Research Expenditure,Chemical Risk Assessment Unit,Agri-Food & Biosciences Institute,INV07329,"45,492.50",406949 PESTICIDE PROCESS FACT FS235012,BT9 5PX,Programme
Food Standards Agency,Food Standards Agency,25/02/2013,Programme Evidence & Research Expenditure,Chemical Risk Assessment Unit,Agri-Food & Biosciences Institute,INV07329,"9,098.50",406949 PESTICIDE PROCESS FACT FS235012,BT9 5PX,Programme
Food Standards Agency,Food Standards Agency,25/02/2013,Project Programme expenditure,Contaminants Policy & Strategy Unit,C E F A S,8002224,"67,657.25",PO 400800 JUL-SEP 12,NR33 0HT,Programme
Food Standards Agency,Food Standards Agency,25/02/2013,Project Programme expenditure,Contaminants Policy & Strategy Unit,Animal Health and Veterinary Laboratories Agency,5000023518,"60,529.00",PO 400807 LABORATORY SURVEILLANCE 31 JAN 13,YO1 7PX,Programme
Food Standards Agency,Food Standards Agency,25/02/2013,Project Programme expenditure,Contaminants Policy & Strategy Unit,Animal Health and Veterinary Laboratories Agency,5000023562,"60,529.00",PO 400807 LABORATORY SURVEILLANCE FS131003,YO1 7PX,Programme
Food Standards Agency,Food Standards Agency,25/02/2013,Subsistence UK,Contaminants Policy & Strategy Unit,Booking Services International Ltd,022782266/1,55,FSA HOTEL & ACCOMMODATION CONSOLIDATED INVOICE 29/01/13 to 12/02/13,TA1 2PF,Admin
Food Standards Agency,Food Standards Agency,25/02/2013,Programme Evidence & Research Expenditure,Contaminants Policy & Strategy Unit,Food & Environment Research Agency,F0026668,"58,922.00",PO 400946 FSA MODELLING INTRIM REPORT DETAILING 2ND SET OF GROWTH CURVES,YO41 1LZ,Programme
Food Standards Agency,Food Standards Agency,25/02/2013,Incidental expenses,Contaminants Policy & Strategy Unit,Harper Adams University College,SIRV7018,"22,025.00",PO 400517 INVESTIGATE THE IMPACT OF AGRONOMIC PRACTICES,TF10 8NB,Admin
Food Standards Agency,Food Standards Agency,25/02/2013,Incidental expenses,Contaminants Policy & Strategy Unit,Harper Adams University College,SIRV7018,"4,405.00",PO 400517 INVESTIGATE THE IMPACT OF AGRONOMIC PRACTICES,TF10 8NB,Admin
Food Standards Agency,Food Standards Agency,25/02/2013,Subsistence UK,Novel Food Unit,Booking Services International Ltd,022782266/1,124.93,FSA HOTEL & ACCOMMODATION CONSOLIDATED INVOICE 29/01/13 to 12/02/13,TA1 2PF,Admin
Food Standards Agency,Food Standards Agency,25/02/2013,Subsistence UK,Hygiene & Microbiology Division HoD,Booking Services International Ltd,022782266/1,140,FSA HOTEL & ACCOMMODATION CONSOLIDATED INVOICE 29/01/13 to 12/02/13,TA1 2PF,Admin
Food Standards Agency,Food Standards Agency,25/02/2013,Subsistence UK,Food Production Branch,Booking Services International Ltd,022782266/1,123.6,FSA HOTEL & ACCOMMODATION CONSOLIDATED INVOICE 29/01/13 to 12/02/13,TA1 2PF,Admin
Food Standards Agency,Food Standards Agency,25/02/2013,Subsistence UK,Food Hygiene Policy Branch,Booking Services International Ltd,022782266/1,226.78,FSA HOTEL & ACCOMMODATION CONSOLIDATED INVOICE 29/01/13 to 12/02/13,TA1 2PF,Admin
Food Standards Agency,Food Standards Agency,25/02/2013,Subsistence UK,Animal Feed Branch,Booking Services International Ltd,022782266/1,635.57,FSA HOTEL & ACCOMMODATION CONSOLIDATED INVOICE 29/01/13 to 12/02/13,TA1 2PF,Admin
Food Standards Agency,Food Standards Agency,25/02/2013,Subsistence UK,Nutrition Science Head of Unit,Booking Services International Ltd,022782266/1,63,FSA HOTEL & ACCOMMODATION CONSOLIDATED INVOICE 29/01/13 to 12/02/13,TA1 2PF,Programme
Food Standards Agency,Food Standards Agency,25/02/2013,Project Programme expenditure,Food Policy Strategy HoD,T N S Uk Ltd,260114593,"30,175.00",PO 410194,W5 1UA,Programme
Food Standards Agency,Food Standards Agency,25/02/2013,Subsistence UK,Food Policy Strategy HoD,Booking Services International Ltd,022782266/1,526.2,FSA HOTEL & ACCOMMODATION CONSOLIDATED INVOICE 29/01/13 to 12/02/13,TA1 2PF,Admin
Food Standards Agency,Food Standards Agency,25/02/2013,Subsistence UK,Planning and Performance,Booking Services International Ltd,022782266/1,908.4,FSA HOTEL & ACCOMMODATION CONSOLIDATED INVOICE 29/01/13 to 12/02/13,TA1 2PF,Admin
Food Standards Agency,Food Standards Agency,25/02/2013,Subsistence UK,Food Policy Private Office,Booking Services International Ltd,022782266/1,78,FSA HOTEL & ACCOMMODATION CONSOLIDATED INVOICE 29/01/13 to 12/02/13,TA1 2PF,Admin
Food Standards Agency,Food Standards Agency,25/02/2013,Subsistence UK,Finance Director & Branch,Booking Services International Ltd,022782266/1,123.6,FSA HOTEL & ACCOMMODATION CONSOLIDATED INVOICE 29/01/13 to 12/02/13,TA1 2PF,Admin
Food Standards Agency,Food Standards Agency,25/02/2013,Subsistence UK,HR,Booking Services International Ltd,022782266/1,681.8,FSA HOTEL & ACCOMMODATION CONSOLIDATED INVOICE 29/01/13 to 12/02/13,TA1 2PF,Admin
Food Standards Agency,Food Standards Agency,25/02/2013,Subsistence UK,Procurement,Booking Services International Ltd,022782266/1,151.2,FSA HOTEL & ACCOMMODATION CONSOLIDATED INVOICE 29/01/13 to 12/02/13,TA1 2PF,Admin
Food Standards Agency,Food Standards Agency,25/02/2013,Subsistence UK,IT HoD,Booking Services International Ltd,022782266/1,75,FSA HOTEL & ACCOMMODATION CONSOLIDATED INVOICE 29/01/13 to 12/02/13,TA1 2PF,Admin
Food Standards Agency,Food Standards Agency,25/02/2013,ASD support services,IT Service Delivery,Capita Secure Information Solutions Ltd,92843624,"306,449.86",PO 411590 SERVICE CHARGE DEC 12,SN14 0TW,Admin
Food Standards Agency,Food Standards Agency,25/02/2013,Subsistence UK,Security & Estates,Booking Services International Ltd,022782266/1,156,FSA HOTEL & ACCOMMODATION CONSOLIDATED INVOICE 29/01/13 to 12/02/13,TA1 2PF,Admin
Food Standards Agency,Food Standards Agency,25/02/2013,Subsistence UK,Internal Audit,Booking Services International Ltd,022782266/1,"1,042.80",FSA HOTEL & ACCOMMODATION CONSOLIDATED INVOICE 29/01/13 to 12/02/13,TA1 2PF,Admin
Food Standards Agency,Food Standards Agency,27/02/2013,Project Programme expenditure,Comms Directors Office,Fly On The Wall Ltd,1813A,"30,550.00",411395 REML ARCHIVE SERVER PROD OF DVD,SW6 2LR,Programme
Food Standards Agency,Food Standards Agency,27/02/2013,Project Programme expenditure,EU Regulatory Reform Branch,Scottish Rural University College,20703137,"34,748.00",PO 406619 SRUC REF 2064957 FINAL CONTRACT,EH9 3JG,Programme
Food Standards Agency,Food Standards Agency,27/02/2013,Project Programme expenditure,Food Policy Strategy HoD,Amtec (Keane),21554,"38,272.00",PO 407948 DELIVERY OF SURVEY DATA,GU9 7HX,Programme
"Date Run: 12-MAR-13 10.03.20 AM --- Company Code : '17' , Payment Start Date : '01-FEB-2013' , Payment End Date : '28-FEB-2013'",,,,,,,,,,
